fUSD/lending_fUSD_20250511
["ID","MTS","AMOUNT","RATE_DAILY","PERIOD"]
[360733133,1746957159021,-151.0,0.00019892,2]
[360733134,1746957159048,-400.0,0.00019892,2]
[360733135,1746957159074,-400.0,0.00019892,2]
[360733136,1746957159100,-400.0,0.00019892,2]
[360733137,1746957159127,-768.15,0.00019892,2]
[360733138,1746957159152,-299.133973,0.00019892,2]
[360733139,1746957159177,-151.0,0.00019892,2]
[360733140,1746957159208,-454.05,0.00019892,2]
[360733141,1746957159236,-400.0,0.00019892,2]
[360733142,1746957159262,-400.0,0.00019892,2]
[360733143,1746957159290,-903.0,0.00019892,2]
[360733144,1746957159317,-400.0,0.00019892,2]
[360733145,1746957159345,-400.0,0.00019892,2]
[360733146,1746957159375,-400.0,0.00019892,2]
[360733147,1746957159403,-745.16,0.00019892,2]
[360733148,1746957159430,-400.0,0.00019892,2]
[360733149,1746957159457,-400.0,0.00019892,2]
[360733150,1746957159484,-400.0,0.00019892,2]
[360733151,1746957159512,-597.59,0.00019892,2]
[360733152,1746957159541,-936.96,0.00019892,2]
[360733153,1746957159568,-151.0,0.00019893,2]
[360733154,1746957159593,-151.0,0.00019893,2]
[360733155,1746957159619,-151.0,0.00019893,2]
[360733156,1746957159646,-151.0,0.00019893,2]
[360733157,1746957159673,-152.254952,0.00019893,2]
[360733158,1746957159697,-151.0,0.00019893,2]
[360733159,1746957159722,-154.917689,0.00019893,2]
[360733160,1746957159747,-151.144392,0.00019893,2]
[360733161,1746957159771,-433.663732,0.00019893,2]
[360733162,1746957159796,-433.663732,0.00019893,2]
[360733163,1746957159821,-433.663732,0.00019893,2]
[360733164,1746957159845,-433.663732,0.00019893,2]
[360733165,1746957159869,-151.0,0.00019893,2]
[360733166,1746957159894,-155.452175,0.00019893,2]
[360733167,1746957159919,-151.0,0.00019893,2]
[360733168,1746957159944,-151.0,0.00019893,2]
[360733169,1746957159968,-151.0,0.00019893,2]
[360733170,1746957159992,-151.0,0.00019893,2]
[360733171,1746957160017,-151.0,0.00019893,2]
[360733172,1746957160042,-151.0,0.00019893,2]
[360733173,1746957160067,-151.0,0.00019893,2]
[360733174,1746957160092,-151.0,0.00019893,2]
[360733175,1746957160117,-151.0,0.00019893,2]
[360733176,1746957160141,-151.0,0.00019893,2]
[360733177,1746957160165,-151.0,0.00019893,2]
[360733178,1746957160189,-151.0,0.00019893,2]
[360733179,1746957160226,-151.0,0.00019893,2]
[360733180,1746957160252,-151.0,0.00019893,2]
[360733181,1746957160277,-151.0,0.00019893,2]
[360733182,1746957160303,-151.0,0.00019893,2]
[360733183,1746957160328,-152.676845,0.00019893,2]
[360733184,1746957160354,-151.0,0.00019893,2]
[360733185,1746957160380,-151.0,0.00019893,2]
[360733186,1746957160406,-151.0,0.00019893,2]
[360733187,1746957160430,-151.0,0.00019893,2]
[360733188,1746957160458,-151.0,0.00019893,2]
[360733189,1746957160483,-151.0,0.00019893,2]
[360733190,1746957160508,-151.0,0.00019893,2]
[360733191,1746957160539,-151.0,0.00019893,2]
[360733192,1746957160564,-151.0,0.00019893,2]
[360733193,1746957160590,-151.0,0.00019893,2]
[360733194,1746957160616,-151.0,0.00019893,2]
[360733195,1746957160642,-151.0,0.00019893,2]
[360733196,1746957160668,-201.333681,0.00019893,2]
[360733197,1746957160694,-151.0,0.00019893,2]
[360733198,1746957160719,-151.0,0.00019893,2]
[360733199,1746957160746,-170.570625,0.00019893,2]
[360733200,1746957160773,-170.570625,0.00019893,2]
[360733201,1746957160798,-170.570625,0.00019893,2]
[360733202,1746957160824,-170.570625,0.00019893,2]
[360733203,1746957160851,-151.0,0.00019893,2]
[360733204,1746957160876,-151.744563,0.00019893,2]
[360733205,1746957160902,-151.0,0.00019893,2]
[360733206,1746957160929,-151.0,0.00019893,2]
[360733207,1746957160954,-151.0,0.00019893,2]
[360733208,1746957161212,-151.0,0.00019893,2]
[360733209,1746957161240,-588.746993,0.00019893,2]
[360733210,1746957161270,-588.746993,0.00019893,2]
[360733211,1746957161297,-417.4,0.00019893,2]
[360733212,1746957161323,-151.0,0.00019893,2]
[360733213,1746957161351,-400.0,0.00019893,2]
[360733214,1746957161379,-151.0,0.00019893,2]
[360733215,1746957161405,-400.0,0.00019893,2]
[360733216,1746957161431,-151.0,0.00019893,2]
[360733217,1746957161456,-400.0,0.00019893,2]
[360733218,1746957161483,-151.0,0.00019893,2]
[360733219,1746957161508,-400.0,0.00019893,2]
[360733220,1746957161534,-400.0,0.00019893,2]
[360733221,1746957161559,-400.0,0.00019893,2]
[360733222,1746957161585,-151.0,0.00019893,2]
[360733223,1746957161611,-151.0,0.00019893,2]
[360733224,1746957161635,-151.0,0.00019893,2]
[360733225,1746957161660,-151.0,0.00019893,2]
[360733226,1746957161686,-471.59,0.00019893,2]
[360733227,1746957161713,-400.0,0.00019893,2]
[360733228,1746957161738,-400.0,0.00019893,2]
[360733229,1746957161764,-329.297613,0.00019893,2]
[360733230,1746957161791,-400.0,0.00019893,2]
[360733231,1746957161818,-329.297613,0.00019893,2]
[360733232,1746957161845,-400.0,0.00019893,2]
[360733233,1746957161873,-180.075918,0.00019893,2]
[360733234,1746957161898,-152.971802,0.00019893,2]
[360733235,1746957161925,-400.0,0.00019893,2]
[360733236,1746957161952,-151.0,0.00019893,2]
[360733237,1746957161977,-484.08,0.00019893,2]
[360733238,1746957162002,-493.16,0.00019893,2]
[360733239,1746957162028,-400.0,0.00019893,2]
[360733240,1746957162053,-962.39,0.00019893,2]
[360733241,1746957162079,-400.0,0.00019893,2]
[360733242,1746957162103,-400.0,0.00019893,2]
[360733243,1746957162129,-400.0,0.00019893,2]
[360733244,1746957162154,-400.0,0.00019893,2]
[360733245,1746957162179,-400.0,0.00019893,2]
[360733246,1746957162203,-400.0,0.00019893,2]
[360733247,1746957162227,-151.0,0.00019893,2]
[360733248,1746957162252,-400.0,0.00019893,2]
[360733249,1746957162277,-400.0,0.00019893,2]
[360733250,1746957162305,-400.0,0.00019893,2]
[360733251,1746957162337,-400.0,0.00019893,2]
[360733252,1746957162368,-400.0,0.00019893,2]
[360733253,1746957162395,-445.95,0.00019893,2]
[360733254,1746957162422,-394.971222,0.00019893,2]
[360733255,1746957162447,-709.51,0.00019893,2]
[360733256,1746957162475,-394.971222,0.00019893,2]
[360733257,1746957162504,-768.75,0.00019893,2]
[360733258,1746957162530,-189.11732,0.00019893,2]
[360733259,1746957162557,-400.0,0.00019893,2]
[360733260,1746957162585,-166.365584,0.00019893,2]
[360733261,1746957162610,-166.365584,0.00019893,2]
[360733262,1746957162635,-150.0,0.00019893,2]
[360733263,1746957162662,-151.0,0.00019893,2]
[360733264,1746957162688,-393.96097089,0.00019893,2]
[360733265,1746957162713,-150.0,0.00019893,2]
[360733266,1746957162739,-400.0,0.00019893,2]
[360733267,1746957162767,-400.0,0.00019893,2]
[360733268,1746957162793,-151.82,0.00019893,2]
[360733269,1746957162821,-400.0,0.00019893,2]
[360733270,1746957162847,-558.61,0.00019893,2]
[360733271,1746957162872,-238.650222,0.00019893,2]
[360733272,1746957162898,-400.0,0.00019893,2]
[360733273,1746957162923,-238.650222,0.00019893,2]
[360733274,1746957162948,-151.0,0.00019893,2]
[360733275,1746957162973,-2180.31,0.00019893,2]
[360733276,1746957162998,-151.0,0.00019893,2]
[360733277,1746957163025,-151.0,0.00019893,2]
[360733278,1746957163051,-400.0,0.00019893,2]
[360733279,1746957163080,-591.07,0.00019893,2]
[360733280,1746957163107,-480.81,0.00019893,2]
[360733281,1746957163131,-151.0,0.00019893,2]
[360733282,1746957163156,-1987.73,0.00019893,2]
[360733283,1746957163182,-637.48,0.00019893,2]
[360733284,1746957163207,-151.0,0.00019893,2]
[360733285,1746957163233,-400.0,0.00019893,2]
[360733286,1746957163258,-400.0,0.00019893,2]
[360733287,1746957163284,-245.969,0.00019893,2]
[360733288,1746957163310,-400.0,0.00019893,2]
[360733289,1746957163339,-245.969,0.00019893,2]
[360733290,1746957163366,-156.73953,0.00019893,2]
[360733291,1746957163394,-400.0,0.00019893,2]
[360733292,1746957163420,-156.73953,0.00019893,2]
[360733293,1746957163446,-665.35,0.00019893,2]
[360733294,1746957163474,-7893.23,0.00019893,2]
[360733295,1746957163500,-666.559909,0.00019893,2]
[360733296,1746957163526,-666.559909,0.00019893,2]
[360733297,1746957163552,-400.0,0.00019893,2]
[360733298,1746957163579,-152.758499,0.00019893,2]
[360733299,1746957163606,-559.37,0.00019893,2]
[360733300,1746957163632,-400.0,0.00019893,2]
[360733301,1746957163659,-400.0,0.00019893,2]
[360733302,1746957163684,-400.0,0.00019893,2]
[360733303,1746957163710,-400.0,0.00019893,2]
[360733304,1746957163735,-184.34999993,0.00019893,2]
[360733305,1746957163760,-508.51230616,0.00019893,2]
[360733306,1746957163790,-400.0,0.00019893,2]
[360733307,1746957163815,-400.0,0.00019893,2]
[360733308,1746957163842,-573.98,0.00019893,2]
[360733309,1746957163867,-408.02,0.00019893,2]
[360733310,1746957163892,-400.0,0.00019893,2]
[360733311,1746957163917,-416.79,0.00019893,2]
[360733312,1746957163943,-631.31,0.00019893,2]
[360733313,1746957163968,-400.0,0.00019893,2]
[360733314,1746957163994,-505.65,0.00019893,2]
[360733315,1746957164020,-1418.60503752,0.00019894,2]
[360733316,1746957164045,-639.30387591,0.00019894,2]
[360733317,1746957164071,-151.0,0.00019894,2]
[360733318,1746957164096,-151.0,0.00019894,2]
[360733319,1746957164121,-433.663732,0.00019894,2]
[360733320,1746957164146,-433.663732,0.00019894,2]
[360733321,1746957164172,-151.0,0.00019894,2]
[360733322,1746957164198,-151.0,0.00019894,2]
[360733323,1746957164223,-151.0,0.00019894,2]
[360733324,1746957164411,-151.0,0.00019894,2]
[360733325,1746957164438,-152.13957,0.00019894,2]
[360733326,1746957164465,-151.0,0.00019894,2]
[360733327,1746957164492,-151.0,0.00019894,2]
[360733328,1746957164518,-151.0,0.00019894,2]
[360733329,1746957164542,-151.0,0.00019894,2]
[360733330,1746957164566,-1000.0,0.00019894,2]
[360733331,1746957164592,-1000.0,0.00019894,2]
[360733332,1746957164616,-1000.0,0.00019894,2]
[360733333,1746957164641,-1000.0,0.00019894,2]
[360733334,1746957164666,-1000.0,0.00019894,2]
[360733335,1746957164692,-1000.0,0.00019894,2]
[360733336,1746957164719,-1000.0,0.00019894,2]
[360733337,1746957164744,-1000.0,0.00019894,2]
[360733338,1746957164771,-1000.0,0.00019894,2]
[360733339,1746957164794,-1000.0,0.00019894,2]
[360733340,1746957164820,-1000.0,0.00019894,2]
[360733341,1746957164844,-1000.0,0.00019894,2]
[360733342,1746957164868,-1000.0,0.00019894,2]
[360733343,1746957164892,-1000.0,0.00019894,2]
[360733344,1746957164916,-1000.0,0.00019894,2]
[360733345,1746957164941,-1000.0,0.00019894,2]
[360733346,1746957164966,-1000.0,0.00019894,2]
[360733347,1746957164991,-1000.0,0.00019894,2]
[360733348,1746957165019,-1000.0,0.00019894,2]
[360733349,1746957165043,-1000.0,0.00019894,2]
[360733350,1746957165068,-1000.0,0.00019894,2]
[360733351,1746957165093,-1000.0,0.00019894,2]
[360733352,1746957165117,-1000.0,0.00019894,2]
[360733353,1746957165142,-1000.0,0.00019894,2]
[360733354,1746957165166,-1000.0,0.00019894,2]
[360733355,1746957165190,-1000.0,0.00019894,2]
[360733356,1746957165215,-1000.0,0.00019894,2]
[360733357,1746957165239,-1000.0,0.00019894,2]
[360733358,1746957165264,-1000.0,0.00019894,2]
[360733359,1746957165290,-1000.0,0.00019894,2]
[360733360,1746957165315,-1000.0,0.00019894,2]
[360733361,1746957165341,-760.64853523,0.00019894,2]
[360733362,1746957165365,-151.0,0.00019894,2]
[360733363,1746957165391,-173.264759,0.00019894,2]
[360733364,1746957165416,-151.0,0.00019894,2]
[360733365,1746957165441,-152.96641,0.00019895,2]
[360733366,1746957165467,-151.0,0.00019895,2]
[360733367,1746957165492,-433.663732,0.00019895,2]
[360733368,1746957165518,-433.663732,0.00019895,2]
[360733369,1746957165542,-151.0,0.00019895,2]
[360733370,1746957165568,-151.0,0.00019895,2]
[360733371,1746957165594,-151.0,0.00019895,2]
[360733372,1746957165619,-151.0,0.00019895,2]
[360733373,1746957165644,-151.0,0.00019895,2]
[360733374,1746957165669,-151.0,0.00019895,2]
[360733375,1746957165694,-151.0,0.00019895,2]
[360733376,1746957165719,-151.0,0.00019895,2]
[360733377,1746957165744,-151.0,0.00019895,2]
[360733378,1746957165772,-151.0,0.00019895,2]
[360733379,1746957165797,-170.570625,0.00019895,2]
[360733380,1746957165824,-170.570625,0.00019895,2]
[360733381,1746957165849,-162.643295,0.00019895,2]
[360733382,1746957165876,-400.0,0.00019895,2]
[360733383,1746957165902,-400.0,0.00019895,2]
[360733384,1746957165927,-400.0,0.00019895,2]
[360733385,1746957165954,-400.0,0.00019895,2]
[360733386,1746957165980,-596.81,0.00019895,2]
[360733387,1746957166006,-400.0,0.00019895,2]
[360733388,1746957166031,-631.0,0.00019896,2]
[360733389,1746957166056,-151.0,0.00019896,2]
[360733390,1746957166082,-433.663732,0.00019896,2]
[360733391,1746957166106,-433.663732,0.00019896,2]
[360733392,1746957166131,-151.0,0.00019896,2]
[360733393,1746957166155,-151.0,0.00019896,2]
[360733394,1746957166180,-400.0,0.00019896,2]
[360733395,1746957166206,-180.59763401,0.00019896,2]
[360733396,1746957166232,-589.22,0.00019896,2]
[360733397,1746957166258,-400.0,0.00019896,2]
[360733398,1746957166284,-532.85,0.00019896,2]
[360733399,1746957166310,-617.82,0.00019896,2]
[360733400,1746957166337,-28887.7,0.00019896,2]
[360733402,1746957166364,-400.0,0.00019896,2]
[360733403,1746957166390,-400.0,0.00019896,2]
[360733404,1746957166416,-400.0,0.00019896,2]
[360733405,1746957166443,-400.0,0.00019896,2]
[360733406,1746957166473,-400.0,0.00019896,2]
[360733407,1746957166500,-676.82,0.00019896,2]
[360733408,1746957166528,-400.0,0.00019896,2]
[360733409,1746957166553,-400.0,0.00019896,2]
[360733410,1746957166579,-400.0,0.00019896,2]
[360733411,1746957166605,-450.01,0.00019896,2]
[360733412,1746957166630,-400.0,0.00019896,2]
[360733413,1746957166656,-516.22,0.00019896,2]
[360733414,1746957166681,-759.32,0.00019896,2]
[360733415,1746957166706,-2635.21,0.00019896,2]
[360733416,1746957166729,-151.0,0.00019897,2]
[360733417,1746957166753,-151.0,0.00019897,2]
[360733418,1746957166783,-394.971222,0.00019897,2]
[360733419,1746957166809,-394.971222,0.00019897,2]
[360733420,1746957166833,-166.365584,0.00019897,2]
[360733421,1746957166859,-166.365584,0.00019897,2]
[360733422,1746957166885,-151.0,0.00019897,2]
[360733423,1746957166910,-151.0,0.00019897,2]
[360733424,1746957166935,-245.969,0.00019897,2]
[360733425,1746957166960,-245.969,0.00019897,2]
[360733426,1746957166986,-156.73953,0.00019897,2]
[360733427,1746957167011,-156.73953,0.00019897,2]
[360733428,1746957167035,-151.0,0.00019898,2]
[360733429,1746957167059,-433.663732,0.00019898,2]
[360733430,1746957167084,-433.663732,0.00019898,2]
[360733431,1746957167109,-151.0,0.00019898,2]
[360733432,1746957167134,-588.746993,0.00019898,2]
[360733433,1746957167159,-588.746993,0.00019898,2]
[360733434,1746957167184,-417.4,0.00019898,2]
[360733435,1746957167209,-400.0,0.00019898,2]
[360733436,1746957167234,-324.73605936,0.00019898,2]
[360733437,1746957167259,-240.724966,0.00019898,2]
[360733438,1746957167284,-400.0,0.00019898,2]
[360733439,1746957167309,-264.39461088,0.00019898,2]
[360733440,1746957167334,-400.0,0.00019898,2]
[360733441,1746957167508,-400.0,0.00019898,2]
[360733442,1746957167535,-151.0,0.00019898,2]
[360733443,1746957167561,-471.59,0.00019898,2]
[360733444,1746957167586,-400.0,0.00019898,2]
[360733445,1746957167612,-400.0,0.00019898,2]
[360733446,1746957167638,-227.25086301,0.00019898,2]
[360733447,1746957167665,-400.0,0.00019898,2]
[360733448,1746957167692,-493.16,0.00019898,2]
[360733449,1746957167719,-962.39,0.00019898,2]
[360733450,1746957167745,-400.0,0.00019898,2]
[360733451,1746957167775,-400.0,0.00019898,2]
[360733452,1746957167801,-400.0,0.00019898,2]
[360733453,1746957167830,-185.36826428,0.00019898,2]
[360733454,1746957167857,-400.0,0.00019898,2]
[360733455,1746957167882,-445.95,0.00019898,2]
[360733456,1746957167907,-709.51,0.00019898,2]
[360733457,1746957167933,-768.75,0.00019898,2]
[360733458,1746957167960,-151.0,0.00019898,2]
[360733459,1746957167987,-152.153123,0.00019899,2]
[360733460,1746957168012,-151.0,0.00019899,2]
[360733461,1746957168037,-151.0,0.00019899,2]
[360733462,1746957168063,-151.0,0.00019899,2]
[360733463,1746957168088,-1980.06,0.000199,2]
[360733464,1746957168112,-2062.06622395,0.000199,2]
[360733465,1746957168138,-2475.19538528,0.000199,2]
[360733466,1746957168163,-12500.0,0.000199,2]
[360733467,1746957168189,-151.0,0.000199,2]
[360733468,1746957168216,-151.0,0.000199,2]
[360733469,1746957168243,-151.0,0.000199,2]
[360733470,1746957168269,-298.909995,0.000199,2]
[360733471,1746957168294,-7543.95186903,0.000199,2]
[360733472,1746957168321,-150.88455,0.000199,3]
[360733473,1746957168347,-150.88455,0.000199,3]
[360733474,1746957168372,-150.88455,0.000199,3]
[360733475,1746957168397,-156.82339,0.000199,2]
[360733476,1746957168424,-156.82339,0.000199,3]
[360733477,1746957168451,-156.82339,0.000199,3]
[360733478,1746957168478,-156.82339,0.000199,3]
[360733479,1746957168505,-156.82339,0.000199,3]
[360733480,1746957168533,-285.155922,0.000199,2]
[360733481,1746957168559,-151.0,0.000199,2]
[360733482,1746957168588,-161.68326567,0.000199,2]
[360733483,1746957168616,-196.55136974,0.000199,2]
[360733484,1746957168642,-576.66234399,0.000199,2]
[360733485,1746957168667,-8678.53458824,0.000199,2]
[360733486,1746957168692,-179.7592376,0.000199,2]
[360733487,1746957168717,-214.78786822,0.000199,2]
[360733488,1746957168742,-4619.90783795,0.000199,2]
[360733489,1746957168769,-166.56928443,0.000199,2]
[360733490,1746957169091,400.0,0.00019889,2]
[360733491,1746957169151,400.0,0.0001989,2]
[360733492,1746957169194,287.24,0.0001989,2]
[360733493,1746957169247,400.0,0.00019887,2]
[360733494,1746957169281,400.0,0.00019888,2]
[360733495,1746957169319,191.24,0.00019888,2]
[360733496,1746957169352,400.0,0.00019887,2]
[360733497,1746957169391,400.0,0.00019889,2]
[360733498,1746957169422,450.0,0.00019888,2]
[360733499,1746957169453,400.0,0.0001989,2]
[360733500,1746957169491,2394.35954847,0.00019839,2]
[360733501,1746957169530,400.0,0.0001989,2]
[360733502,1746957169562,400.0,0.00019888,2]
[360733503,1746957169599,400.0,0.00019891,2]
[360733504,1746957169634,400.0,0.00019891,2]
[360733505,1746957169665,582.64229045,0.00019788,2]
[360733506,1746957169708,400.0,0.00019891,2]
[360733507,1746957169738,400.0,0.00019888,2]
[360733508,1746957169771,400.0,0.00019891,2]
[360733509,1746957169832,400.0,0.00019887,2]
[360733510,1746957169865,400.0,0.00019888,2]
[360733511,1746957169898,453.57,0.00019887,2]
[360733512,1746957169930,400.0,0.00019887,2]
[360733513,1746957169963,400.0,0.00019891,2]
[360733514,1746957169993,435.79,0.00019889,2]
[360733515,1746957170024,453.57,0.00019888,2]
[360733516,1746957170055,400.0,0.00019891,2]
[360733517,1746957170090,453.57,0.00019889,2]
[360733518,1746957170123,400.0,0.00019893,2]
[360733519,1746957170165,453.57,0.00019889,2]
[360733520,1746957170240,453.57,0.0001989,2]
[360733521,1746957170285,400.0,0.00019888,2]
[360733522,1746957170482,453.57,0.0001989,2]
[360733523,1746957170523,400.0,0.00019889,2]
[360733524,1746957170556,453.57,0.0001989,2]
[360733525,1746957170588,526.63824649,0.00019887,2]
[360733526,1746957170701,400.0,0.0001989,2]
[360733527,1746957170754,453.57,0.0001989,2]
[360733528,1746957170803,400.0,0.0001989,2]
[360733529,1746957170837,453.57,0.0001989,2]
[360733530,1746957170875,400.0,0.00019888,2]
[360733531,1746957170912,400.0,0.00019887,2]
[360733532,1746957170944,453.57,0.0001989,2]
[360733533,1746957170976,400.0,0.00019891,2]
[360733534,1746957171050,400.0,0.00019889,2]
[360733535,1746957171092,400.0,0.00019888,2]
[360733536,1746957171124,453.57,0.0001989,2]
[360733537,1746957171156,493.81778277,0.00019891,2]
[360733538,1746957171193,400.0,0.00019889,2]
[360733539,1746957171234,453.57,0.00019892,2]
[360733540,1746957171267,400.0,0.00019889,2]
[360733541,1746957171304,400.0,0.00019889,2]
[360733542,1746957171347,2394.35954847,0.00019852,2]
[360733543,1746957171489,400.0,0.00019888,2]
[360733544,1746957171557,400.0,0.00019887,2]
[360733545,1746957171595,705.21,0.00019888,2]
[360733546,1746957171627,409.82566971,0.00019888,2]
[360733547,1746957171660,705.21,0.00019889,2]
[360733548,1746957171698,151.0,0.00019879,2]
[360733549,1746957171732,705.21,0.00019889,2]
[360733550,1746957171762,501.88797801,0.00019873,2]
[360733551,1746957171840,705.21,0.0001989,2]
[360733552,1746957171896,705.21,0.0001989,2]
[360733553,1746957171932,151.0,0.00019887,2]
[360733554,1746957171962,705.21,0.0001989,2]
[360733555,1746957172005,705.21,0.0001989,2]
[360733556,1746957172117,705.21,0.0001989,2]
[360733557,1746957172189,705.21,0.0001989,2]
[360733558,1746957172222,400.0,0.00019887,2]
[360733559,1746957172259,705.21,0.0001989,2]
[360733560,1746957172297,400.0,0.00019888,2]
[360733561,1746957172390,705.21,0.00019891,2]
[360733562,1746957172443,212.29965481,0.00019889,2]
[360733563,1746957172560,705.21,0.00019896,2]
[360733564,1746957172606,400.0,0.00019888,2]
[360733565,1746957172648,400.0,0.00019888,2]
[360733566,1746957172680,400.0,0.00019887,2]
[360733567,1746957172711,400.0,0.00019889,2]
[360733568,1746957172747,400.0,0.00019889,2]
[360733569,1746957172786,2394.35954847,0.00019864,2]
[360733570,1746957172821,400.0,0.00019888,2]
[360733571,1746957172860,400.0,0.00019889,2]
[360733572,1746957172894,400.0,0.0001989,2]
[360733573,1746957172925,400.0,0.00019889,2]
[360733574,1746957172962,500.0,0.00019873,2]
[360733575,1746957172997,400.0,0.00019887,2]
[360733576,1746957173029,400.0,0.00019887,2]
[360733577,1746957173060,408.78,0.0001989,2]
[360733578,1746957173129,207.4,0.00019879,2]
[360733579,1746957173176,400.0,0.0001989,2]
[360733580,1746957173209,400.0,0.0001989,2]
[360733581,1746957173251,400.0,0.00019888,2]
[360733582,1746957173296,400.0,0.0001989,2]
[360733583,1746957173336,400.0,0.00019889,2]
[360733584,1746957173374,400.0,0.0001989,2]
[360733585,1746957173572,400.0,0.0001989,2]
[360733586,1746957173606,400.0,0.00019887,2]
[360733587,1746957173641,400.0,0.0001989,2]
[360733588,1746957173681,400.0,0.0001989,2]
[360733589,1746957173738,400.0,0.0001989,2]
[360733590,1746957173775,400.0,0.00019891,2]
[360733591,1746957173812,400.0,0.00019887,2]
[360733592,1746957173854,400.0,0.0001989,2]
[360733593,1746957173895,400.0,0.00019891,2]
[360733594,1746957173931,400.0,0.00019888,2]
[360733595,1746957173973,400.0,0.00019891,2]
[360733596,1746957174008,400.0,0.00019889,2]
[360733597,1746957174060,400.0,0.00019896,2]
[360733598,1746957174104,400.0,0.00019891,2]
[360733599,1746957174366,400.0,0.00019891,2]
[360733600,1746957174476,400.0,0.00019887,2]
[360733601,1746957174511,177.34458499,0.0001979,2]
[360733602,1746957174546,400.0,0.00019891,2]
[360733604,1746957174588,400.0,0.00019888,2]
[360733605,1746957174624,400.0,0.00019891,2]
[360733606,1746957174664,500.0,0.00019873,2]
[360733607,1746957174703,400.0,0.00019893,2]
[360733608,1746957174751,2394.35954847,0.00019876,2]
[360733609,1746957174907,465.479508,0.00019887,2]
[360733610,1746957174954,1036.79,0.00019888,2]
[360733611,1746957175046,1036.79,0.00019889,2]
[360733612,1746957175088,1036.79,0.00019889,2]
[360733613,1746957175122,400.0,0.00019887,2]
[360733614,1746957175155,400.0,0.00019888,2]
[360733615,1746957175192,400.0,0.00019888,2]
[360733616,1746957175225,1036.79,0.0001989,2]
[360733617,1746957175266,400.0,0.00019889,2]
[360733618,1746957175300,1036.79,0.0001989,2]
[360733619,1746957175333,400.0,0.0001989,2]
[360733620,1746957175369,400.0,0.00019887,2]
[360733621,1746957175403,1036.79,0.0001989,2]
[360733622,1746957175439,400.0,0.00019889,2]
[360733623,1746957175477,400.0,0.00019888,2]
[360733624,1746957175512,400.0,0.00019887,2]
[360733625,1746957175547,1036.79,0.0001989,2]
[360733626,1746957175585,400.0,0.00019889,2]
[360733627,1746957175619,1000.0,0.00019888,2]
[360733628,1746957175706,400.0,0.00019889,2]
[360733629,1746957175741,400.0,0.00019888,2]
[360733630,1746957175776,1036.79,0.0001989,2]
[360733631,1746957175810,464.16,0.0001989,2]
[360733632,1746957175842,1000.0,0.00019889,2]
[360733633,1746957175876,400.0,0.00019889,2]
[360733634,1746957175908,1036.79,0.0001989,2]